fUST/lending_fUST_20260427
["ID","MTS","AMOUNT","RATE_DAILY","PERIOD"]
[421182729,1777221039603,-214.0,0.0001886,2]
[421182730,1777221039616,-500.0,0.0001892,13]
[421182731,1777221039629,-503.76,0.0001892,14]
[421182732,1777221039641,-400.0,0.00019,2]
[421182733,1777221039653,-500.0,0.00019,2]
[421182734,1777221039665,-492.17,0.00019,2]
[421182735,1777221039679,-185.0,0.00019056,2]
[421182736,1777221039691,-184.67538821,0.00019077,2]
[421182737,1777221039703,-151.80568944,0.00019078,2]
[421182738,1777221039715,-1178.32581662,0.000191,2]
[421182739,1777221039728,-160.0,0.0001911,2]
[421182740,1777221039740,-345.063865,0.0001911,2]
[421182741,1777221039752,-530.12773,0.0001911,2]
[421182742,1777221039764,-160.0,0.0001911,7]
[421182743,1777221039776,-1687.659239,0.0001911,7]
[421182744,1777221039788,-3215.318478,0.0001911,7]
[421182745,1777221039801,-160.0,0.0001911,2]
[421182746,1777221039813,-935.58885,0.0001911,2]
[421182747,1777221039825,-1711.1777,0.0001911,2]
[421182748,1777221039836,-3405.5471667,0.00019135,2]
[421182749,1777221039847,-2936.3513124,0.00019135,2]
[421182750,1777221039859,-5455.189495,0.00019135,2]
[421182751,1777221039871,-168.085991,0.00019178,2]
[421182752,1777221039883,-858.829031,0.00019178,2]
[421182753,1777221039897,-1342.409035,0.00019178,2]
[421182754,1777221039908,-171.111487,0.00019178,2]
[421182755,1777221039920,-457.51720068,0.00019178,2]
[421182756,1777221039932,-500.0,0.00019178,2]
[421182757,1777221039942,-2236.7038,0.00019178,2]
[421182758,1777221039954,-500.0,0.00019178,2]
[421182759,1777221039967,-500.0,0.00019178,2]
[421182760,1777221039979,-500.0,0.00019178,2]
[421182761,1777221039991,-500.0,0.00019178,2]
[421182763,1777221040003,-500.0,0.00019178,2]
[421182764,1777221040015,-500.0,0.00019178,2]
[421182765,1777221040026,-500.0,0.00019178,2]
[421182766,1777221040038,-500.0,0.00019178,2]
[421182767,1777221040049,-500.0,0.00019178,2]
[421182768,1777221040061,-500.0,0.00019178,2]
[421182769,1777221040073,-500.0,0.00019178,2]
[421182770,1777221040085,-500.0,0.00019178,2]
[421182771,1777221040096,-500.0,0.00019178,2]
[421182772,1777221040108,-500.0,0.00019178,2]
[421182773,1777221040120,-500.0,0.00019178,2]
[421182774,1777221040131,-514.01745109,0.00019178,2]
[421182776,1777221040142,-500.0,0.00019178,2]
[421182778,1777221040155,-575.61,0.00019178,2]
[421182779,1777221040167,-500.0,0.00019178,2]
[421182780,1777221040179,-500.0,0.00019178,2]
[421182781,1777221040189,-500.0,0.00019178,2]
[421182782,1777221040201,-500.0,0.00019178,2]
[421182783,1777221040213,-500.0,0.00019178,2]
[421182784,1777221040225,-500.0,0.00019178,2]
[421182785,1777221040236,-500.0,0.00019178,2]
[421182786,1777221040248,-500.0,0.00019178,2]
[421182787,1777221040258,-500.0,0.00019178,2]
[421182788,1777221040271,-500.0,0.00019178,2]
[421182789,1777221040283,-632.65434582,0.00019178,2]
[421182790,1777221040295,-1951.28,0.00019178,2]
[421182791,1777221040307,-500.0,0.00019178,2]
[421182792,1777221040318,-500.0,0.00019178,2]
[421182793,1777221040328,-500.0,0.00019178,2]
[421182794,1777221040340,-500.0,0.00019178,2]
[421182795,1777221040351,-444.98292144,0.00019178,2]
[421182796,1777221040362,-500.0,0.00019178,2]
[421182797,1777221040373,-1739.16,0.00019178,2]
[421182798,1777221040385,-500.0,0.00019178,2]
[421182799,1777221040396,-500.0,0.00019178,2]
[421182800,1777221040407,-506.76819829,0.00019178,2]
[421182801,1777221040418,-500.0,0.00019178,2]
[421182802,1777221040429,-500.0,0.00019178,2]
[421182803,1777221040440,-500.0,0.00019178,2]
[421182804,1777221040451,-500.0,0.00019178,2]
[421182805,1777221040463,-500.0,0.00019178,2]
[421182806,1777221040474,-786.86,0.00019178,2]
[421182807,1777221040484,-1874.29,0.00019178,2]
[421182808,1777221040496,-621.16085873,0.00019178,2]
[421182809,1777221040508,-258.57238488,0.00019178,2]
[421182810,1777221040518,-500.0,0.00019178,2]
[421182811,1777221040530,-187.02003386,0.00019178,2]
[421182812,1777221040541,-493.76972537,0.00019178,2]
[421182813,1777221040560,-6.23027463,0.00019178,2]
[421182814,1777221040571,-500.0,0.00019178,2]
[421182815,1777221040582,-500.0,0.00019178,2]
[421182816,1777221040594,-615.60811593,0.00019178,2]
[421182817,1777221040604,-821.89,0.00019178,2]
[421182818,1777221040615,-500.0,0.00019178,2]
[421182819,1777221040626,-500.0,0.00019178,2]
[421182820,1777221040637,-500.0,0.00019178,2]
[421182821,1777221040647,-500.0,0.00019178,2]
[421182822,1777221040658,-500.0,0.00019178,2]
[421182823,1777221040668,-500.0,0.00019178,2]
[421182824,1777221040680,-500.0,0.00019178,2]
[421182825,1777221040690,-500.0,0.00019178,2]
[421182826,1777221040702,-500.0,0.00019178,2]
[421182827,1777221040713,-565.03441509,0.00019178,2]
[421182828,1777221040724,-500.0,0.00019178,2]
[421182829,1777221040735,-500.0,0.00019178,2]
[421182830,1777221040746,-500.0,0.00019178,2]
[421182831,1777221040757,-500.0,0.00019178,2]
[421182832,1777221040768,-1339.83,0.00019178,2]
[421182833,1777221040779,-500.0,0.00019178,2]
[421182834,1777221040790,-611.04565439,0.00019178,2]
[421182835,1777221040800,-500.0,0.00019178,2]
[421182836,1777221040812,-511.28211763,0.00019178,2]
[421182837,1777221040822,-500.0,0.00019178,2]
[421182838,1777221040833,-500.0,0.00019178,2]
[421182839,1777221040844,-500.0,0.00019178,2]
[421182840,1777221040855,-500.0,0.00019178,2]
[421182841,1777221040866,-500.0,0.00019178,2]
[421182842,1777221040877,-500.0,0.00019178,2]
[421182843,1777221040888,-574.05,0.00019178,2]
[421182844,1777221040899,-500.0,0.00019178,2]
[421182845,1777221040911,-500.0,0.00019178,2]
[421182846,1777221040921,-500.0,0.00019178,2]
[421182847,1777221040933,-500.0,0.00019178,2]
[421182848,1777221040944,-500.0,0.00019178,2]
[421182849,1777221040956,-500.0,0.00019178,2]
[421182850,1777221040967,-526.91005973,0.00019178,2]
[421182851,1777221040977,-500.0,0.00019178,2]
[421182852,1777221040987,-500.0,0.00019178,2]
[421182853,1777221040996,-500.0,0.00019178,2]
[421182854,1777221041006,-500.0,0.00019178,2]
[421182855,1777221041015,-500.0,0.00019178,2]
[421182856,1777221041467,-500.0,0.00019178,2]
[421182857,1777221041490,-2370.92,0.00019178,2]
[421182858,1777221041500,-500.0,0.00019178,2]
[421182859,1777221041509,-488.62889604,0.00019178,2]
[421182860,1777221041518,-500.0,0.00019178,2]
[421182861,1777221041528,-500.0,0.00019178,2]
[421182862,1777221041537,-500.0,0.00019178,2]
[421182863,1777221041546,-522.72727876,0.00019178,2]
[421182864,1777221041556,-500.0,0.00019178,2]
[421182865,1777221041566,-500.0,0.00019178,2]
[421182866,1777221041575,-500.0,0.00019178,2]
[421182868,1777221041585,-500.0,0.00019178,2]
[421182870,1777221041594,-1422.29,0.00019178,2]
[421182871,1777221041603,-13175.775304,0.00019178,2]
[421182873,1777221041613,-500.0,0.00019178,2]
[421182875,1777221041623,-2582.46,0.00019178,2]
[421182877,1777221041632,-500.0,0.00019178,2]
[421182879,1777221041641,-500.0,0.00019178,2]
[421182880,1777221041650,-17054.31419,0.00019178,2]
[421182881,1777221041660,-500.0,0.00019178,2]
[421182883,1777221041669,-500.0,0.00019178,2]
[421182884,1777221041678,-118.48404674,0.00019178,2]
[421182887,1777221041710,-381.51595326,0.00019178,2]
[421182889,1777221041719,-1051.52,0.00019178,2]
[421182890,1777221041729,-362.41454197,0.00019178,2]
[421182891,1777221041738,-517.54,0.00019178,2]
[421182892,1777221041747,-500.0,0.00019178,2]
[421182893,1777221041756,-500.0,0.00019178,2]
[421182894,1777221041766,-514.77926056,0.00019178,2]
[421182895,1777221041779,-500.0,0.00019178,2]
[421182897,1777221041788,-500.0,0.00019178,2]
[421182898,1777221041797,-500.0,0.00019178,2]
[421182900,1777221041806,-506.83337309,0.00019178,2]
[421182902,1777221041816,-500.0,0.00019178,2]
[421182903,1777221041825,-740.14,0.00019178,2]
[421182904,1777221041834,-642.60071954,0.00019178,2]
[421182905,1777221041844,-500.0,0.00019178,2]
[421182906,1777221041853,-500.0,0.00019178,2]
[421182907,1777221041862,-500.0,0.00019178,2]
[421182908,1777221041871,-500.0,0.00019178,2]
[421182909,1777221041881,-500.0,0.00019178,2]
[421182910,1777221041890,-500.0,0.00019178,2]
[421182911,1777221041899,-725.7,0.00019178,2]
[421182912,1777221041908,-500.0,0.00019178,2]
[421182913,1777221041917,-500.0,0.00019178,2]
[421182914,1777221041926,-500.0,0.00019178,2]
[421182915,1777221041936,-500.0,0.00019178,2]
[421182916,1777221041946,-500.0,0.00019178,2]
[421182917,1777221041956,-500.0,0.00019178,2]
[421182918,1777221041964,-500.0,0.00019178,2]
[421182919,1777221041974,-358.94732655,0.00019178,2]
[421182920,1777221041983,-511.4269473,0.00019178,2]
[421182921,1777221041992,-1144.05,0.00019178,2]
[421182922,1777221042001,-623.48835017,0.00019178,2]
[421182923,1777221042010,-500.0,0.00019178,2]
[421182924,1777221042020,-500.0,0.00019178,2]
[421182925,1777221042029,-826.44,0.00019178,2]
[421182926,1777221042038,-500.0,0.00019178,2]
[421182927,1777221042048,-500.0,0.00019178,2]
[421182928,1777221042057,-1013.8,0.00019178,2]
[421182929,1777221042066,-500.0,0.00019178,2]
[421182930,1777221042076,-500.0,0.00019178,2]
[421182931,1777221042085,-500.0,0.00019178,2]
[421182932,1777221042094,-500.0,0.00019178,2]
[421182933,1777221042104,-500.0,0.00019178,2]
[421182934,1777221042113,-500.0,0.00019178,2]
[421182935,1777221042123,-1204.26,0.00019178,2]
[421182936,1777221042132,-500.0,0.00019178,2]
[421182937,1777221042141,-500.0,0.00019178,2]
[421182938,1777221042150,-500.0,0.00019178,2]
[421182939,1777221042160,-1000.0,0.00019178,2]
[421182940,1777221042170,-500.0,0.00019178,2]
[421182941,1777221042179,-500.0,0.00019178,2]
[421182942,1777221042188,-500.0,0.00019178,2]
[421182943,1777221042198,-500.0,0.00019178,2]
[421182944,1777221042208,-500.0,0.00019178,2]
[421182945,1777221042217,-500.0,0.00019178,2]
[421182946,1777221042227,-500.0,0.00019178,2]
[421182947,1777221042236,-500.0,0.00019178,2]
[421182948,1777221042245,-500.0,0.00019178,2]
[421182949,1777221042254,-500.0,0.00019178,2]
[421182950,1777221042263,-500.0,0.00019178,2]
[421182951,1777221042273,-500.0,0.00019178,2]
[421182952,1777221042282,-500.0,0.00019178,2]
[421182953,1777221042291,-500.0,0.00019178,2]
[421182954,1777221042301,-500.0,0.00019178,2]
[421182955,1777221042311,-222.07046548,0.00019178,2]
[421182956,1777221042320,-500.0,0.00019178,2]
[421182957,1777221042333,-500.0,0.00019178,2]
[421182958,1777221042342,-500.0,0.00019178,2]
[421182959,1777221042351,-500.0,0.00019178,2]
[421182960,1777221042360,-500.0,0.00019178,2]
[421182961,1777221042370,-1263.55,0.00019178,2]
[421182962,1777221042379,-500.0,0.00019178,2]
[421182963,1777221042388,-329.47906535,0.00019178,2]
[421182964,1777221042397,-511.02,0.00019178,2]
[421182965,1777221042406,-1787.7,0.00019178,2]
[421182966,1777221042415,-503.96293507,0.00019178,2]
[421182967,1777221042424,-643.2567,0.00019178,2]
[421182968,1777221042434,-1013.16,0.00019178,2]
[421182969,1777221042443,-500.0,0.00019178,2]
[421182970,1777221042452,-500.0,0.00019178,2]
[421182971,1777221042461,-882.86,0.00019178,2]
[421182972,1777221042471,-500.0,0.00019178,2]
[421182973,1777221042480,-500.0,0.00019178,2]
[421182974,1777221042489,-405.96644712,0.00019178,2]
[421182975,1777221042499,-208.62446933,0.00019178,2]
[421182976,1777221042508,-500.0,0.00019178,2]
[421182977,1777221042518,-500.0,0.00019178,2]
[421182978,1777221042527,-3761.92,0.00019178,2]
[421182979,1777221042536,-500.0,0.00019178,2]
[421182980,1777221042545,-500.0,0.00019178,2]
[421182981,1777221042555,-500.0,0.00019178,2]
[421182982,1777221042563,-500.0,0.00019178,2]
[421182983,1777221042572,-500.0,0.00019178,2]
[421182984,1777221042581,-500.0,0.00019178,2]
[421182985,1777221042590,-500.0,0.00019178,2]
[421182986,1777221042599,-500.0,0.00019178,2]
[421182987,1777221042608,-500.0,0.00019178,2]
[421182988,1777221042618,-500.0,0.00019178,2]
[421182989,1777221042627,-241.21134016,0.00019178,2]
[421182990,1777221042636,-500.0,0.00019178,2]
[421182991,1777221042646,-606.86,0.00019178,2]
[421182992,1777221042655,-547.72241282,0.00019178,2]
[421182993,1777221042664,-500.0,0.00019178,2]
[421182994,1777221042673,-500.0,0.00019178,2]
[421182995,1777221042683,-500.0,0.00019178,2]
[421182996,1777221042692,-500.0,0.00019178,2]
[421182997,1777221042701,-500.0,0.00019178,2]
[421182998,1777221042711,-735.13,0.00019178,2]
[421182999,1777221042720,-500.0,0.00019178,2]
[421183000,1777221042729,-517.54,0.00019178,2]
[421183001,1777221042739,-500.0,0.00019178,2]
[421183002,1777221042749,-500.0,0.00019178,2]
[421183003,1777221042759,-500.0,0.00019178,2]
[421183004,1777221042768,-500.0,0.00019178,2]
[421183005,1777221042777,-500.0,0.00019178,2]
[421183006,1777221042786,-500.0,0.00019178,2]
[421183007,1777221042795,-500.0,0.00019178,2]
[421183008,1777221042806,-500.0,0.00019178,2]
[421183009,1777221042815,-500.0,0.00019178,2]
[421183010,1777221042824,-500.0,0.00019178,2]
[421183011,1777221042834,-500.0,0.00019178,2]
[421183012,1777221042843,-500.0,0.00019178,2]
[421183013,1777221042852,-500.0,0.00019178,2]
[421183014,1777221042861,-500.0,0.00019178,2]
[421183015,1777221042870,-500.0,0.00019178,2]
[421183016,1777221042879,-500.0,0.00019178,2]
[421183017,1777221042888,-2784.99,0.00019178,2]
[421183019,1777221042898,-613.815,0.00019178,2]
[421183020,1777221042908,-1311.93,0.00019178,2]
[421183021,1777221042917,-500.0,0.00019178,2]
[421183022,1777221042926,-500.0,0.00019178,2]
[421183023,1777221042935,-500.0,0.00019178,2]
[421183024,1777221042945,-559.51,0.00019178,2]
[421183025,1777221042954,-500.0,0.00019178,2]
[421183026,1777221042963,-500.0,0.00019178,2]
[421183027,1777221042972,-500.0,0.00019178,2]
[421183028,1777221042981,-545.59555492,0.00019178,2]
[421183029,1777221042990,-500.0,0.00019178,2]
[421183030,1777221042999,-500.0,0.00019178,2]
[421183031,1777221043009,-500.0,0.00019178,2]
[421183032,1777221043018,-500.0,0.00019178,2]
[421183033,1777221043027,-500.0,0.00019178,2]
[421183034,1777221043037,-500.0,0.00019178,2]
[421183037,1777221043046,-500.0,0.00019178,2]
[421183040,1777221043056,-500.0,0.00019178,2]
[421183041,1777221043065,-500.0,0.00019178,2]
[421183042,1777221043074,-500.0,0.00019178,2]
[421183043,1777221043082,-491.79,0.00019178,2]
[421183044,1777221043091,-500.0,0.00019178,2]
[421183045,1777221043101,-500.0,0.00019178,2]
[421183046,1777221043111,-500.0,0.00019178,2]
[421183047,1777221043120,-652.84,0.00019178,2]
[421183048,1777221043129,-500.0,0.00019178,2]
[421183049,1777221043138,-500.0,0.00019178,2]
[421183051,1777221043147,-500.0,0.00019178,2]
[421183052,1777221043156,-500.0,0.00019178,2]
[421183053,1777221043166,-500.0,0.00019178,2]
[421183055,1777221043175,-500.0,0.00019178,2]
[421183057,1777221043185,-500.0,0.00019178,2]
[421183058,1777221043195,-539.52,0.00019178,2]
[421183059,1777221043204,-500.0,0.00019178,2]
[421183060,1777221043215,-500.0,0.00019178,2]
[421183061,1777221043225,-500.0,0.00019178,2]
[421183062,1777221043234,-500.0,0.00019178,2]
[421183063,1777221043243,-500.0,0.00019178,2]
[421183064,1777221043252,-500.0,0.00019178,2]
[421183065,1777221043262,-500.0,0.00019178,2]
[421183066,1777221043271,-500.0,0.00019178,2]
[421183067,1777221043280,-1192.95,0.00019178,2]
[421183068,1777221043289,-585.64296175,0.00019178,2]
[421183069,1777221043298,-500.0,0.00019178,2]
[421183070,1777221043308,-6594.7,0.00019178,2]
[421183071,1777221043318,-500.0,0.00019178,2]
[421183072,1777221043327,-500.0,0.00019178,2]
[421183073,1777221043336,-1887.97,0.00019178,2]
[421183074,1777221043345,-510.14969556,0.00019178,2]
[421183075,1777221043355,-500.0,0.00019178,2]
[421183076,1777221043364,-500.0,0.00019178,2]
[421183077,1777221043373,-500.0,0.00019178,2]
[421183078,1777221043382,-500.0,0.00019178,2]
[421183080,1777221043391,-543.45,0.00019178,2]
[421183081,1777221043400,-500.0,0.00019178,2]
[421183082,1777221043409,-500.0,0.00019178,2]
[421183083,1777221043418,-1156.28,0.00019178,2]
[421183084,1777221043427,-500.0,0.00019178,2]
[421183085,1777221043436,-3120.4,0.00019178,2]
[421183087,1777221043446,-1037.45,0.00019178,2]
[421183088,1777221043454,-500.0,0.00019178,2]
[421183089,1777221043464,-513.38711299,0.00019178,2]
[421183090,1777221043472,-500.0,0.00019178,2]
[421183091,1777221043482,-1482.43,0.00019178,2]
[421183092,1777221043491,-500.0,0.00019178,2]
[421183093,1777221043500,-500.0,0.00019178,2]
[421183094,1777221043509,-500.0,0.00019178,2]
[421183095,1777221043518,-500.0,0.00019178,2]
[421183096,1777221043528,-500.0,0.00019178,2]
[421183097,1777221043537,-500.0,0.00019178,2]
[421183098,1777221043547,-500.0,0.00019178,2]
[421183100,1777221043556,-500.0,0.00019178,2]
[421183101,1777221043565,-500.0,0.00019178,2]
[421183102,1777221043574,-927.28,0.00019178,2]
[421183103,1777221043584,-500.0,0.00019178,2]
[421183104,1777221043593,-500.0,0.00019178,2]
[421183105,1777221043602,-500.0,0.00019178,2]
[421183106,1777221043611,-500.0,0.00019178,2]
[421183108,1777221043621,-598.94684502,0.00019178,2]
[421183109,1777221043630,-500.0,0.00019178,2]
[421183110,1777221043640,-500.0,0.00019178,2]
[421183111,1777221043650,-2323.07,0.00019178,2]
[421183112,1777221043660,-500.0,0.00019178,2]
[421183113,1777221043669,-500.0,0.00019178,2]
[421183114,1777221043678,-500.0,0.00019178,2]
[421183115,1777221043687,-544.5832095,0.00019178,2]
[421183116,1777221043696,-500.0,0.00019178,2]
[421183117,1777221043706,-500.0,0.00019178,2]
[421183118,1777221043715,-500.0,0.00019178,2]
[421183119,1777221043724,-538.05811005,0.00019178,2]
[421183120,1777221043733,-500.0,0.00019178,2]
[421183121,1777221043743,-500.0,0.00019178,2]
[421183122,1777221043752,-500.99559635,0.00019178,2]
[421183123,1777221043761,-500.0,0.00019178,2]
[421183124,1777221043771,-500.0,0.00019178,2]
[421183125,1777221043780,-621.76240106,0.00019178,2]
[421183126,1777221043789,-500.0,0.00019178,2]
[421183127,1777221043799,-500.0,0.00019178,2]
[421183128,1777221043808,-625.18,0.00019178,2]
[421183129,1777221043818,-500.0,0.00019178,2]
[421183130,1777221043827,-500.0,0.00019178,2]
[421183131,1777221043836,-500.0,0.00019178,2]
[421183132,1777221043846,-500.0,0.00019178,2]
[421183133,1777221043855,-650.59,0.00019178,2]
[421183134,1777221043864,-500.0,0.00019178,2]
[421183135,1777221043873,-500.0,0.00019178,2]
[421183136,1777221043882,-500.0,0.00019178,2]
[421183137,1777221043892,-500.0,0.00019178,2]
[421183138,1777221043901,-500.0,0.00019178,2]
[421183139,1777221043910,-500.0,0.00019178,2]
[421183140,1777221043920,-500.0,0.00019178,2]
[421183141,1777221043929,-500.0,0.00019178,2]
[421183142,1777221043939,-500.0,0.00019178,2]
[421183143,1777221043948,-500.0,0.00019178,2]
[421183144,1777221043958,-506.84063543,0.00019178,2]
[421183145,1777221043967,-500.0,0.00019178,2]
[421183146,1777221043976,-375.66067695,0.00019178,2]
[421183147,1777221043985,-1000.0,0.00019178,2]
[421183149,1777221043995,-2529.62,0.00019178,2]
[421183151,1777221044004,-265.78153443,0.00019178,2]
[421183153,1777221044013,-500.0,0.00019178,2]
[421183154,1777221044022,-500.0,0.00019178,2]
[421183156,1777221044031,-4446.85,0.00019178,2]
[421183157,1777221044040,-500.0,0.00019178,2]
[421183158,1777221044050,-536.41173947,0.00019178,2]
[421183159,1777221044059,-500.0,0.00019178,2]
[421183160,1777221044068,-500.0,0.00019178,2]
[421183161,1777221044078,-500.0,0.00019178,2]
[421183162,1777221044087,-772.52,0.00019178,2]
[421183163,1777221044096,-500.0,0.00019178,2]
[421183164,1777221044105,-500.0,0.00019178,2]
[421183165,1777221044114,-501.12658235,0.00019178,2]
[421183166,1777221044123,-500.0,0.00019178,2]
[421183167,1777221044132,-500.0,0.00019178,2]
[421183168,1777221044141,-596.15,0.00019178,2]
[421183169,1777221044151,-500.0,0.00019178,2]
[421183170,1777221044160,-500.0,0.00019178,2]
[421183171,1777221044169,-500.0,0.00019178,2]
[421183172,1777221044179,-643.27,0.00019178,2]
[421183173,1777221044188,-500.0,0.00019178,2]
[421183174,1777221044197,-500.0,0.00019178,2]
[421183175,1777221044207,-1484.94,0.00019178,2]
[421183176,1777221044216,-500.0,0.00019178,2]
[421183177,1777221044227,-500.0,0.00019178,2]
[421183178,1777221044236,-500.0,0.00019178,2]
[421183179,1777221044245,-506.54287715,0.00019178,2]
[421183180,1777221044254,-500.0,0.00019178,2]
[421183181,1777221044264,-1215.03,0.00019178,2]
[421183182,1777221044273,-500.0,0.00019178,2]
[421183183,1777221044282,-2441.72,0.00019178,2]
[421183184,1777221044291,-500.0,0.00019178,2]
[421183185,1777221044300,-500.0,0.00019178,2]
[421183186,1777221044309,-500.0,0.00019178,2]
[421183187,1777221044318,-500.0,0.00019178,2]
[421183188,1777221044328,-504.98880055,0.00019178,2]
[421183189,1777221044337,-500.0,0.00019178,2]
[421183190,1777221044346,-500.0,0.00019178,2]
[421183191,1777221044355,-500.0,0.00019178,2]
[421183192,1777221044364,-500.0,0.00019178,2]
[421183193,1777221044374,-500.0,0.00019178,2]
[421183194,1777221044574,-949.41,0.00019178,2]
[421183195,1777221044584,-505.1568472,0.00019178,2]
[421183196,1777221044593,-500.0,0.00019178,2]
[421183197,1777221044603,-500.0,0.00019178,2]
[421183198,1777221044612,-1115.35,0.00019178,2]
[421183199,1777221044621,-500.0,0.00019178,2]
[421183200,1777221044631,-500.0,0.00019178,2]
[421183201,1777221044640,-500.0,0.00019178,2]
[421183202,1777221044649,-500.0,0.00019178,2]
[421183203,1777221044658,-266.88202913,0.00019178,2]
[421183204,1777221044667,-500.0,0.00019178,2]
[421183205,1777221044676,-500.0,0.00019178,2]
[421183206,1777221044685,-500.0,0.00019178,2]
[421183207,1777221044694,-500.0,0.00019178,2]
[421183208,1777221044703,-1039.83,0.00019178,2]
[421183209,1777221044712,-1444.67,0.00019178,2]
[421183210,1777221044721,-500.0,0.00019178,2]
[421183211,1777221044731,-500.0,0.00019178,2]
[421183212,1777221044741,-500.0,0.00019178,2]
[421183213,1777221044750,-500.0,0.00019178,2]
[421183214,1777221044759,-500.0,0.00019178,2]
[421183215,1777221044769,-500.0,0.00019178,2]
[421183216,1777221044779,-1286.5134,0.00019178,2]
[421183217,1777221044788,-500.0,0.00019178,2]
[421183218,1777221044796,-4198.7,0.00019178,2]
[421183219,1777221044806,-762.48,0.00019178,2]
[421183220,1777221044815,-3604.14,0.00019178,2]
[421183221,1777221044824,-709.71,0.00019178,2]
[421183222,1777221044834,-500.0,0.00019178,2]
[421183223,1777221044843,-500.0,0.00019178,2]
[421183224,1777221044852,-500.0,0.00019178,2]
[421183225,1777221044861,-508.13352887,0.00019178,2]
[421183226,1777221044871,-377.07574522,0.00019178,2]
[421183227,1777221044880,-500.0,0.00019178,2]
[421183228,1777221044890,-500.0,0.00019178,2]
[421183229,1777221044899,-513.90289899,0.00019178,2]
[421183230,1777221044908,-500.0,0.00019178,2]
[421183231,1777221044918,-500.0,0.00019178,2]
[421183232,1777221044927,-500.0,0.00019178,2]
[421183233,1777221044936,-500.0,0.00019178,2]
[421183234,1777221044945,-500.0,0.00019178,2]
[421183235,1777221044954,-500.0,0.00019178,2]
[421183236,1777221044963,-622.78404894,0.00019178,2]
[421183237,1777221044972,-500.0,0.00019178,2]
[421183238,1777221044981,-185.02066603,0.00019178,2]
[421183239,1777221044990,-500.0,0.00019178,2]
[421183240,1777221045000,-500.0,0.00019178,2]
[421183241,1777221045010,-500.0,0.00019178,2]
[421183242,1777221045019,-643.26,0.00019178,2]
[421183243,1777221045028,-500.14975326,0.00019178,2]
[421183244,1777221045038,-500.0,0.00019178,2]
[421183245,1777221045047,-500.0,0.00019178,2]
[421183246,1777221045056,-500.0,0.00019178,2]
[421183247,1777221045065,-319.24212665,0.00019178,2]
[421183248,1777221045074,-500.0,0.00019178,2]
[421183249,1777221045083,-500.0,0.00019178,2]
[421183250,1777221045092,-506.48141434,0.00019178,2]
[421183251,1777221045101,-519.87621424,0.00019178,2]
[421183252,1777221045111,-500.0,0.00019178,2]
[421183253,1777221045120,-500.0,0.00019178,2]
[421183254,1777221045129,-500.0,0.00019178,2]
[421183255,1777221045139,-1252.98,0.00019178,2]
[421183256,1777221045148,-500.0,0.00019178,2]
[421183257,1777221045158,-500.0,0.00019178,2]
[421183258,1777221045167,-515.66068599,0.00019178,2]
[421183259,1777221045176,-500.0,0.00019178,2]
[421183260,1777221045185,-500.0,0.00019178,2]